fUST/lending_fUST_20240322
["ID","MTS","AMOUNT","RATE_DAILY","PERIOD"]
[320049044,1711115453465,-955.22,0.00029589,2]
[320049045,1711115453475,-500.0,0.00029589,2]
[320049046,1711115453486,-500.0,0.00029589,2]
[320049047,1711115453496,-676.25,0.00029589,2]
[320049048,1711115453506,-500.0,0.00029589,2]
[320049049,1711115453516,-500.0,0.00029589,2]
[320049050,1711115453526,-500.0,0.00029589,2]
[320049051,1711115453541,-616.97,0.00029589,2]
[320049052,1711115453552,-808.45,0.00029589,2]
[320049053,1711115453563,-500.0,0.00029589,2]
[320049054,1711115453575,-500.0,0.00029589,2]
[320049055,1711115453587,-500.0,0.00029589,2]
[320049056,1711115453602,-500.0,0.00029589,2]
[320049057,1711115453612,-616.53,0.00029589,2]
[320049058,1711115453726,-500.0,0.00029589,2]
[320049059,1711115453737,-500.0,0.00029589,2]
[320049060,1711115453747,-2114.34,0.00029589,2]
[320049061,1711115453758,-500.0,0.00029589,2]
[320049062,1711115453768,-579.77,0.00029589,2]
[320049063,1711115453784,-500.0,0.00029589,2]
[320049064,1711115453794,-500.0,0.00029589,2]
[320049065,1711115453804,-500.0,0.00029589,2]
[320049066,1711115453813,-500.0,0.00029589,2]
[320049067,1711115453823,-500.0,0.00029589,2]
[320049068,1711115453833,-500.0,0.00029589,2]
[320049069,1711115453843,-501.97136362,0.00029589,2]
[320049070,1711115453852,-854.2,0.00029589,2]
[320049071,1711115453862,-1432.33,0.00029589,2]
[320049072,1711115453871,-1109.84,0.00029589,2]
[320049073,1711115453880,-2496.11,0.00029589,2]
[320049074,1711115453889,-705.27,0.00029589,2]
[320049075,1711115453899,-811.02,0.00029589,2]
[320049076,1711115453909,-1450.07,0.00029589,2]
[320049077,1711115453918,-500.0,0.00029589,2]
[320049078,1711115453929,-500.0,0.00029589,2]
[320049079,1711115453939,-525.82,0.00029589,2]
[320049080,1711115453949,-594.77,0.00029589,2]
[320049081,1711115453958,-500.0,0.00029589,2]
[320049082,1711115453968,-2110.5,0.00029589,2]
[320049083,1711115453977,-653.88,0.00029589,2]
[320049084,1711115453985,-500.0,0.00029589,2]
[320049085,1711115453994,-500.0,0.00029589,2]
[320049086,1711115454003,-500.0,0.00029589,2]
[320049087,1711115454013,-2170.67,0.00029589,2]
[320049088,1711115454022,-500.0,0.00029589,2]
[320049089,1711115454034,-500.0,0.00029589,2]
[320049090,1711115454043,-449.0147999,0.00029589,2]
[320049091,1711115454052,-499.19217239,0.00029589,2]
[320049092,1711115454062,-500.0,0.00029589,2]
[320049093,1711115454071,-500.0,0.00029589,2]
[320049094,1711115454080,-500.0,0.00029589,2]
[320049095,1711115454091,-500.0,0.00029589,2]
[320049096,1711115454100,-386.59683204,0.00029589,2]
[320049097,1711115454110,-3328.74,0.00029589,2]
[320049098,1711115454119,-500.0,0.00029589,2]
[320049099,1711115454129,-500.0,0.00029589,2]
[320049100,1711115454138,-500.0,0.00029589,2]
[320049101,1711115454147,-500.0,0.00029589,2]
[320049102,1711115454157,-872.36,0.00029589,2]
[320049103,1711115454166,-567.31,0.00029589,2]
[320049104,1711115454176,-523.07,0.00029589,2]
[320049106,1711115454185,-500.0,0.00029589,2]
[320049108,1711115454195,-500.0,0.00029589,2]
[320049110,1711115454204,-662.01,0.00029589,2]
[320049112,1711115454214,-500.0,0.00029589,2]
[320049114,1711115454223,-2025.62,0.00029589,2]
[320049116,1711115454233,-500.0,0.00029589,2]
[320049118,1711115454242,-500.0,0.00029589,2]
[320049120,1711115454251,-618.17841317,0.00029589,2]
[320049122,1711115454260,-500.0,0.00029589,2]
[320049124,1711115454270,-500.0,0.00029589,2]
[320049126,1711115454281,-9316.4,0.00029589,2]
[320049128,1711115454291,-500.0,0.00029589,2]
[320049130,1711115454300,-500.0,0.00029589,2]
[320049132,1711115454309,-2931.18,0.00029589,2]
[320049134,1711115454319,-500.03238454,0.00029589,2]
[320049136,1711115454328,-500.0,0.00029589,2]
[320049138,1711115454337,-500.0,0.00029589,2]
[320049139,1711115454346,-891.94,0.00029589,2]
[320049140,1711115454356,-709.56,0.00029589,2]
[320049142,1711115454365,-572.61,0.00029589,2]
[320049143,1711115454374,-22444.09,0.00029589,2]
[320049145,1711115454383,-500.0,0.00029589,2]
[320049146,1711115454392,-505.53,0.00029589,2]
[320049148,1711115454402,-758.65195657,0.00029589,2]
[320049149,1711115454411,-2628.51,0.00029589,2]
[320049150,1711115454420,-2148.91,0.00029589,2]
[320049151,1711115454429,-500.0,0.00029589,2]
[320049152,1711115454438,-599.04,0.00029589,2]
[320049153,1711115454448,-2181.35,0.00029589,2]
[320049154,1711115454458,-1053.89,0.00029589,2]
[320049155,1711115454467,-2225.28,0.00029589,2]
[320049156,1711115454477,-2785.42,0.00029589,2]
[320049157,1711115454486,-4008.14,0.00029589,2]
[320049158,1711115454495,-3127.98,0.00029589,2]
[320049159,1711115454505,-500.0,0.00029589,2]
[320049161,1711115454514,-561.94,0.00029589,2]
[320049163,1711115454523,-547.24,0.00029589,2]
[320049165,1711115454535,-1586.83,0.00029589,2]
[320049167,1711115454546,-905.49,0.00029589,2]
[320049169,1711115454555,-588.65,0.00029589,2]
[320049171,1711115454564,-500.0,0.00029589,2]
[320049173,1711115454575,-604.36,0.00029589,2]
[320049175,1711115454586,-500.0,0.00029589,2]
[320049177,1711115454599,-5969.81,0.00029589,2]
[320049179,1711115454608,-1166.06,0.00029589,2]
[320049181,1711115454617,-246.28499172,0.00029589,2]
[320049183,1711115454626,-2279.41,0.00029589,2]
[320049185,1711115454635,-500.0,0.00029589,2]
[320049187,1711115454644,-1051.13,0.00029589,2]
[320049189,1711115454653,-31274.5,0.00029589,2]
[320049191,1711115454662,-30529.47,0.00029589,2]
[320049193,1711115454672,-5703.1,0.00029589,2]
[320049195,1711115454681,-601.68089456,0.00029589,2]
[320049197,1711115454690,-500.0,0.00029589,2]
[320049199,1711115454698,-6699.23,0.00029589,2]
[320049201,1711115454707,-591.2,0.00029589,2]
[320049203,1711115454716,-2922.32,0.00029589,2]
[320049205,1711115454725,-500.0,0.00029589,2]
[320049207,1711115454735,-500.0,0.00029589,2]
[320049209,1711115454743,-500.0,0.00029589,2]
[320049211,1711115454752,-500.0,0.00029589,2]
[320049213,1711115454761,-2119.44,0.00029589,2]
[320049215,1711115454770,-668.63,0.00029589,2]
[320049217,1711115454782,-2385.98,0.00029589,2]
[320049218,1711115454791,-500.0,0.00029589,2]
[320049219,1711115454800,-1835.6,0.00029589,2]
[320049220,1711115454814,-500.0,0.00029589,2]
[320049221,1711115454823,-500.0,0.00029589,2]
[320049222,1711115454832,-794.49,0.00029589,2]
[320049223,1711115454842,-1781.83,0.00029589,2]
[320049224,1711115454852,-5258.14,0.00029589,2]
[320049225,1711115454861,-445.30057381,0.00029589,2]
[320049226,1711115454869,-500.0,0.00029589,2]
[320049227,1711115454878,-665.32,0.00029589,2]
[320049228,1711115454888,-153.0,0.00029589,2]
[320049229,1711115454898,-2001.0,0.000296,2]
[320049230,1711115454907,-2000.0,0.00029622,2]
[320049231,1711115454917,-201.8047941,0.00029764,2]
[320049232,1711115454927,-403.5659041,0.00029775,2]
[320049233,1711115454938,-153.0,0.00029776,2]
[320049234,1711115454948,-306.0,0.00029776,2]
[320049235,1711115454957,-153.0,0.00029863,2]
[320049236,1711115454967,-153.0,0.00029863,2]
[320049237,1711115454977,-153.0,0.00029863,2]
[320049238,1711115454987,-153.0,0.00029863,2]
[320049239,1711115454997,-153.0,0.00029863,2]
[320049240,1711115455009,-153.0,0.00029863,2]
[320049241,1711115455018,-153.0,0.00029878,2]
[320049242,1711115455029,-153.0,0.00029878,2]
[320049244,1711115455041,-153.0,0.00029878,2]
[320049246,1711115455051,-201.8047941,0.00029878,2]
[320049248,1711115455061,-153.0,0.00029878,2]
[320049250,1711115455071,-153.0,0.00029878,2]
[320049252,1711115455081,-153.0,0.00029878,2]
[320049254,1711115455091,-153.0,0.00029878,2]
[320049256,1711115455100,-156.594206,0.00029878,2]
[320049258,1711115455109,-153.0,0.00029878,2]
[320049260,1711115455119,-153.0,0.00029878,2]
[320049262,1711115455131,-153.0,0.00029878,2]
[320049264,1711115455141,-153.0,0.00029878,2]
[320049266,1711115455150,-153.0,0.00029878,2]
[320049268,1711115455159,-153.0,0.00029878,2]
[320049270,1711115455169,-153.0,0.00029878,2]
[320049272,1711115455184,-153.0,0.00029878,2]
[320049274,1711115455193,-153.0,0.00029878,2]
[320049276,1711115455203,-153.0,0.00029878,2]
[320049278,1711115455212,-153.0,0.00029878,2]
[320049280,1711115455221,-153.0,0.00029878,2]
[320049282,1711115455232,-153.0,0.0002989,2]
[320049285,1711115455241,-236.65480629,0.000299,7]
[320049287,1711115455251,-166.666666,0.00029962,2]
[320049288,1711115455260,-25058.95388204,0.00029988,30]
[320049290,1711115455271,-641.58882978,0.0003,4]
[320049292,1711115455285,-5128.36066154,0.0003,2]
[320049294,1711115455294,-700.40598325,0.0003,4]
[320049297,1711115455304,-1070.04200839,0.0003,31]
[320049299,1711115455313,-2682.0,0.0003,60]
[320049300,1711115455324,-200.0,0.0003,2]
[320049302,1711115455334,-500.0,0.00030136,2]
[320049304,1711115455343,-500.0,0.00030136,2]
[320049307,1711115455353,-955.22,0.00030136,2]
[320049309,1711115455363,-500.0,0.00030136,2]
[320049310,1711115455376,-500.0,0.00030136,2]
[320049312,1711115455386,-676.25,0.00030136,2]
[320049314,1711115455395,-500.0,0.00030136,2]
[320049316,1711115455404,-500.0,0.00030136,2]
[320049318,1711115455414,-500.0,0.00030136,2]
[320049321,1711115455423,-616.97,0.00030136,2]
[320049323,1711115455433,-808.45,0.00030136,2]
[320049325,1711115455443,-500.0,0.00030136,2]
[320049327,1711115455453,-500.0,0.00030136,2]
[320049329,1711115455463,-500.0,0.00030136,2]
[320049331,1711115455473,-500.0,0.00030136,2]
[320049333,1711115455483,-616.53,0.00030136,2]
[320049334,1711115455493,-295.49281063,0.00030136,2]
[320049337,1711115455504,-500.0,0.00030136,2]
[320049338,1711115455514,-2114.34,0.00030136,2]
[320049341,1711115455524,-500.0,0.00030136,2]
[320049343,1711115455540,-579.77,0.00030136,2]
[320049344,1711115455555,-500.0,0.00030136,2]
[320049347,1711115455568,-500.0,0.00030136,2]
[320049349,1711115455581,-500.0,0.00030136,2]
[320049351,1711115455595,-303.25555355,0.00030136,2]
[320049353,1711115455606,-500.0,0.00030136,2]
[320049355,1711115455616,-854.2,0.00030136,2]
[320049356,1711115455627,-1432.33,0.00030136,2]
[320049358,1711115455637,-1109.84,0.00030136,2]
[320049361,1711115455648,-2496.11,0.00030136,2]
[320049363,1711115455659,-705.27,0.00030136,2]
[320049364,1711115455670,-811.02,0.00030136,2]
[320049366,1711115455682,-1450.07,0.00030136,2]
[320049368,1711115455692,-500.0,0.00030136,2]
[320049370,1711115455703,-500.0,0.00030136,2]
[320049373,1711115455714,-525.82,0.00030136,2]
[320049374,1711115455725,-594.77,0.00030136,2]
[320049377,1711115455736,-500.0,0.00030136,2]
[320049378,1711115455746,-2110.5,0.00030136,2]
[320049381,1711115455760,-653.88,0.00030136,2]
[320049382,1711115455770,-500.0,0.00030136,2]
[320049384,1711115455786,-500.0,0.00030136,2]
[320049387,1711115455798,-2170.67,0.00030136,2]
[320049389,1711115455809,-500.0,0.00030136,2]
[320049391,1711115455819,-500.0,0.00030136,2]
[320049393,1711115455830,-500.0,0.00030136,2]
[320049394,1711115455840,-500.0,0.00030136,2]
[320049397,1711115455850,-500.0,0.00030136,2]
[320049398,1711115455863,-500.0,0.00030136,2]
[320049401,1711115455873,-3328.74,0.00030136,2]
[320049402,1711115455883,-500.0,0.00030136,2]
[320049404,1711115455894,-500.0,0.00030136,2]
[320049406,1711115455903,-500.0,0.00030136,2]
[320049408,1711115455914,-872.36,0.00030136,2]
[320049410,1711115455924,-567.31,0.00030136,2]
[320049412,1711115455934,-523.07,0.00030136,2]
[320049414,1711115455944,-500.0,0.00030136,2]
[320049416,1711115455953,-500.0,0.00030136,2]
[320049418,1711115455964,-662.01,0.00030136,2]
[320049420,1711115455974,-500.0,0.00030136,2]
[320049422,1711115455984,-2025.62,0.00030136,2]
[320049424,1711115455994,-500.0,0.00030136,2]
[320049427,1711115456003,-500.0,0.00030136,2]
[320049429,1711115456013,-500.0,0.00030136,2]
[320049430,1711115456022,-500.0,0.00030136,2]
[320049432,1711115456036,-9316.4,0.00030136,2]
[320049434,1711115456045,-500.0,0.00030136,2]
[320049436,1711115456055,-2931.18,0.00030136,2]
[320049438,1711115456066,-500.0,0.00030136,2]
[320049440,1711115456075,-500.0,0.00030136,2]
[320049442,1711115456085,-891.94,0.00030136,2]
[320049444,1711115456095,-709.56,0.00030136,2]
[320049447,1711115456105,-572.61,0.00030136,2]
[320049448,1711115456116,-22444.09,0.00030136,2]
[320049450,1711115456126,-500.0,0.00030136,2]
[320049452,1711115456136,-505.53,0.00030136,2]
[320049454,1711115456145,-2628.51,0.00030136,2]
[320049456,1711115456154,-2148.91,0.00030136,2]
[320049458,1711115456163,-500.0,0.00030136,2]
[320049461,1711115456172,-599.04,0.00030136,2]
[320049463,1711115456181,-2181.35,0.00030136,2]
[320049464,1711115456191,-1053.89,0.00030136,2]
[320049467,1711115456200,-2225.28,0.00030136,2]
[320049479,1711115456302,-2785.42,0.00030136,2]
[320049481,1711115456311,-4008.14,0.00030136,2]
[320049483,1711115456319,-3127.98,0.00030136,2]
[320049485,1711115456328,-500.0,0.00030136,2]
[320049487,1711115456337,-561.94,0.00030136,2]
[320049488,1711115456346,-547.24,0.00030136,2]
[320049491,1711115456356,-1586.83,0.00030136,2]
[320049493,1711115456365,-905.49,0.00030136,2]
[320049495,1711115456375,-588.65,0.00030136,2]
[320049497,1711115456384,-500.0,0.00030136,2]
[320049498,1711115456394,-604.36,0.00030136,2]
[320049500,1711115456403,-500.0,0.00030136,2]
[320049502,1711115456413,-5969.81,0.00030136,2]
[320049504,1711115456422,-1166.06,0.00030136,2]
[320049507,1711115456434,-2279.41,0.00030136,2]
[320049508,1711115456443,-500.0,0.00030136,2]
[320049511,1711115456454,-1051.13,0.00030136,2]
[320049512,1711115456463,-31274.5,0.00030136,2]
[320049515,1711115456473,-30529.47,0.00030136,2]
[320049517,1711115456482,-5703.1,0.00030136,2]
[320049519,1711115456491,-500.0,0.00030136,2]
[320049520,1711115456499,-6699.23,0.00030136,2]
[320049523,1711115456509,-591.2,0.00030136,2]
[320049525,1711115456518,-2922.32,0.00030136,2]
[320049527,1711115456528,-500.0,0.00030136,2]
[320049528,1711115456541,-500.0,0.00030136,2]
[320049530,1711115456551,-500.0,0.00030136,2]
[320049532,1711115456561,-500.0,0.00030136,2]
[320049534,1711115456571,-2119.44,0.00030136,2]
[320049536,1711115456583,-668.63,0.00030136,2]
[320049538,1711115456593,-2385.98,0.00030136,2]
[320049541,1711115456602,-500.0,0.00030136,2]
[320049542,1711115456612,-1835.6,0.00030136,2]
[320049544,1711115456622,-500.0,0.00030136,2]
[320049547,1711115456632,-500.0,0.00030136,2]
[320049549,1711115456641,-794.49,0.00030136,2]
[320049551,1711115456652,-1781.83,0.00030136,2]
[320049553,1711115456661,-5258.14,0.00030136,2]
[320049554,1711115456670,-500.0,0.00030136,2]
[320049557,1711115456680,-665.32,0.00030136,2]
[320049558,1711115456689,-442.2649314,0.00030137,2]
[320049560,1711115456698,-328.0742388,0.00030411,2]
[320049562,1711115456707,-153.0,0.00030567,2]
[320049564,1711115456716,-153.0,0.00030567,2]
[320049566,1711115456725,-153.0,0.00030567,2]
[320049568,1711115456734,-2000.0,0.000306,3]
[320049570,1711115456744,-1599.0,0.000306,3]
[320049572,1711115456754,-484.0,0.000306,2]
[320049574,1711115456763,-2610.58061483,0.000306,2]
[320049576,1711115456773,-166.666666,0.00030603,2]
[320049579,1711115456786,-303.0,0.00030684,7]
[320049581,1711115456798,-301.0,0.00030684,7]
[320049583,1711115456808,-300.0,0.00030684,7]
[320049585,1711115456818,-500.0,0.00030684,2]
[320049587,1711115456828,-500.0,0.00030684,2]
[320049589,1711115456838,-955.22,0.00030684,2]
[320049591,1711115456848,-500.0,0.00030684,2]
[320049593,1711115456857,-500.0,0.00030684,2]
[320049595,1711115456867,-676.25,0.00030684,2]
[320049597,1711115456877,-500.0,0.00030684,2]
[320049599,1711115456886,-500.0,0.00030684,2]
[320049601,1711115456895,-500.0,0.00030684,2]
[320049603,1711115456904,-616.97,0.00030684,2]
[320049605,1711115456913,-808.45,0.00030684,2]
[320049607,1711115456923,-500.0,0.00030684,2]
[320049609,1711115456933,-500.0,0.00030684,2]
[320049611,1711115456943,-500.0,0.00030684,2]
[320049613,1711115456953,-500.0,0.00030684,2]
[320049615,1711115456963,-616.53,0.00030684,2]
[320049617,1711115456973,-500.0,0.00030684,2]
[320049619,1711115456983,-2114.34,0.00030684,2]
[320049621,1711115456993,-500.0,0.00030684,2]
[320049623,1711115457003,-579.77,0.00030684,2]
[320049625,1711115457013,-500.0,0.00030684,2]
[320049627,1711115457023,-214.04899166,0.00030684,2]
[320049629,1711115457039,-297.11841611,0.00030684,2]
[320049631,1711115457049,-500.0,0.00030684,2]
[320049633,1711115457060,-854.2,0.00030684,2]
[320049635,1711115457071,-1432.33,0.00030684,2]
[320049637,1711115457085,-1109.84,0.00030684,2]
[320049638,1711115457096,-2496.11,0.00030684,2]
[320049640,1711115457107,-705.27,0.00030684,2]
[320049642,1711115457118,-811.02,0.00030684,2]
[320049644,1711115457129,-1450.07,0.00030684,2]
[320049646,1711115457140,-500.0,0.00030684,2]
[320049648,1711115457151,-525.82,0.00030684,2]
[320049650,1711115457162,-594.77,0.00030684,2]
[320049652,1711115457173,-500.0,0.00030684,2]
[320049654,1711115457184,-2110.5,0.00030684,2]
[320049655,1711115457195,-653.88,0.00030684,2]
[320049656,1711115457206,-500.0,0.00030684,2]
[320049657,1711115457216,-500.0,0.00030684,2]
[320049659,1711115457227,-2170.67,0.00030684,2]
[320049660,1711115457239,-500.0,0.00030684,2]
[320049661,1711115457250,-500.0,0.00030684,2]
[320049662,1711115457261,-500.0,0.00030684,2]
[320049663,1711115457271,-500.0,0.00030684,2]
[320049665,1711115457285,-500.0,0.00030684,2]
[320049666,1711115457296,-500.0,0.00030684,2]
[320049668,1711115457306,-3328.74,0.00030684,2]
[320049670,1711115457319,-500.0,0.00030684,2]
[320049671,1711115457329,-500.0,0.00030684,2]
[320049673,1711115457338,-500.0,0.00030684,2]
[320049675,1711115457348,-872.36,0.00030684,2]
[320049676,1711115457358,-567.31,0.00030684,2]
[320049677,1711115457367,-523.07,0.00030684,2]
[320049678,1711115457376,-500.0,0.00030684,2]
[320049679,1711115457386,-500.0,0.00030684,2]
[320049680,1711115457396,-662.01,0.00030684,2]
[320049681,1711115457405,-500.0,0.00030684,2]
[320049682,1711115457414,-2025.62,0.00030684,2]
[320049684,1711115457424,-500.0,0.00030684,2]
[320049686,1711115457433,-500.0,0.00030684,2]
[320049688,1711115457445,-500.0,0.00030684,2]
[320049690,1711115457455,-500.0,0.00030684,2]
[320049691,1711115457465,-9316.4,0.00030684,2]
[320049692,1711115457474,-500.0,0.00030684,2]
[320049693,1711115457484,-2931.18,0.00030684,2]
[320049694,1711115457494,-500.0,0.00030684,2]
[320049695,1711115457504,-500.0,0.00030684,2]
[320049696,1711115457513,-891.94,0.00030684,2]
[320049697,1711115457522,-709.56,0.00030684,2]
[320049698,1711115457533,-572.61,0.00030684,2]
[320049699,1711115457543,-500.0,0.00030684,2]
[320049700,1711115457554,-22444.09,0.00030684,2]
[320049701,1711115457563,-505.53,0.00030684,2]
[320049702,1711115457573,-2628.51,0.00030684,2]
[320049703,1711115457583,-2148.91,0.00030684,2]
[320049704,1711115457593,-500.0,0.00030684,2]
[320049705,1711115457603,-599.04,0.00030684,2]
[320049706,1711115457612,-2181.35,0.00030684,2]
[320049707,1711115457621,-1053.89,0.00030684,2]
[320049708,1711115457630,-2225.28,0.00030684,2]
[320049709,1711115457639,-2785.42,0.00030684,2]
[320049710,1711115457648,-4008.14,0.00030684,2]
[320049711,1711115457659,-3127.98,0.00030684,2]
[320049712,1711115457668,-500.0,0.00030684,2]
[320049713,1711115457677,-561.94,0.00030684,2]
[320049714,1711115457688,-547.24,0.00030684,2]
[320049715,1711115457698,-1586.83,0.00030684,2]
[320049716,1711115457708,-905.49,0.00030684,2]
[320049717,1711115457718,-588.65,0.00030684,2]
[320049718,1711115457727,-500.0,0.00030684,2]
[320049719,1711115457737,-604.36,0.00030684,2]
[320049720,1711115457747,-500.0,0.00030684,2]
[320049721,1711115457756,-5969.81,0.00030684,2]
[320049722,1711115457766,-1166.06,0.00030684,2]
[320049723,1711115457776,-2279.41,0.00030684,2]
[320049724,1711115457786,-500.0,0.00030684,2]
[320049725,1711115457796,-1051.13,0.00030684,2]
[320049726,1711115457805,-31274.5,0.00030684,2]
[320049727,1711115457815,-30529.47,0.00030684,2]
[320049728,1711115457824,-5703.1,0.00030684,2]
[320049729,1711115457834,-500.0,0.00030684,2]
[320049730,1711115457843,-6699.23,0.00030684,2]
[320049731,1711115457853,-591.2,0.00030684,2]
[320049732,1711115457862,-2922.32,0.00030684,2]
[320049733,1711115457872,-500.0,0.00030684,2]
[320049734,1711115457881,-500.0,0.00030684,2]
[320049735,1711115457890,-500.0,0.00030684,2]
[320049736,1711115457899,-500.0,0.00030684,2]
[320049737,1711115457909,-2119.44,0.00030684,2]
[320049738,1711115457919,-668.63,0.00030684,2]
[320049739,1711115457928,-2385.98,0.00030684,2]
[320049740,1711115457938,-500.0,0.00030684,2]
[320049741,1711115457948,-1835.6,0.00030684,2]
[320049742,1711115457957,-500.0,0.00030684,2]
[320049743,1711115457967,-500.0,0.00030684,2]
[320049744,1711115457977,-794.49,0.00030684,2]
[320049745,1711115457986,-1781.83,0.00030684,2]
[320049746,1711115457996,-5258.14,0.00030684,2]
[320049747,1711115458006,-500.0,0.00030684,2]
[320049748,1711115458015,-665.32,0.00030684,2]
[320049749,1711115458026,-306.0,0.00030685,2]
[320049750,1711115458037,-153.0,0.000307,2]
[320049752,1711115458047,-153.0,0.000307,2]
[320049753,1711115458056,-153.0,0.000307,2]
[320049754,1711115458066,-153.0,0.000307,2]
[320049755,1711115458075,-153.0,0.000307,2]
[320049756,1711115458085,-153.0,0.000307,2]
[320049757,1711115458095,-7714.39605189,0.00031,3]
[320049758,1711115458104,-187.69965055,0.00031,2]
[320049759,1711115458114,-1474.0,0.00031,120]
[320049760,1711115458123,-500.0,0.00031232,2]
[320049761,1711115458132,-500.0,0.00031232,2]
[320049762,1711115458142,-955.22,0.00031232,2]
[320049763,1711115458151,-500.0,0.00031232,2]
[320049764,1711115458160,-500.51642864,0.00031232,2]
[320049765,1711115458170,-676.25,0.00031232,2]
[320049766,1711115458179,-500.0,0.00031232,2]
[320049767,1711115458189,-491.75286376,0.00031232,2]
[320049768,1711115458198,-500.0,0.00031232,2]
[320049769,1711115458207,-616.97,0.00031232,2]
[320049770,1711115458217,-808.45,0.00031232,2]
[320049771,1711115458226,-500.0,0.00031232,2]
[320049772,1711115458235,-500.0,0.00031232,2]
[320049773,1711115458244,-500.0,0.00031232,2]
[320049774,1711115458254,-200.0,0.00031232,2]
[320049775,1711115458263,-616.53,0.00031232,2]
[320049776,1711115458273,-500.0,0.00031232,2]
[320049777,1711115458283,-2114.34,0.00031232,2]
[320049778,1711115458293,-500.0,0.00031232,2]
[320049779,1711115458302,-579.77,0.00031232,2]
[320049780,1711115458311,-451.72585333,0.00031232,2]
[320049781,1711115458320,-500.0,0.00031232,2]
[320049782,1711115458329,-854.2,0.00031232,2]
[320049783,1711115458338,-1432.33,0.00031232,2]
[320049784,1711115458349,-1109.84,0.00031232,2]
[320049785,1711115458358,-2496.11,0.00031232,2]
[320049786,1711115458369,-705.27,0.00031232,2]
[320049787,1711115458378,-811.02,0.00031232,2]
[320049788,1711115458388,-1450.07,0.00031232,2]
[320049789,1711115458397,-500.0,0.00031232,2]
[320049790,1711115458406,-525.82,0.00031232,2]
[320049791,1711115458416,-594.77,0.00031232,2]
[320049792,1711115458425,-500.0,0.00031232,2]
[320049793,1711115458435,-2110.5,0.00031232,2]
[320049794,1711115458445,-653.88,0.00031232,2]
[320049795,1711115458454,-500.0,0.00031232,2]
[320049796,1711115458464,-500.0,0.00031232,2]
[320049797,1711115458473,-2170.67,0.00031232,2]
[320049798,1711115458483,-500.0,0.00031232,2]
[320049799,1711115458492,-500.0,0.00031232,2]
[320049800,1711115458502,-152.58,0.00031232,2]
[320049801,1711115458511,-500.0,0.00031232,2]
[320049802,1711115458521,-500.0,0.00031232,2]
[320049803,1711115458619,-500.0,0.00031232,2]
[320049804,1711115458630,-3328.74,0.00031232,2]
[320049805,1711115458639,-601.59866239,0.00031232,2]
[320049806,1711115458649,-500.0,0.00031232,2]
[320049807,1711115458659,-500.0,0.00031232,2]
[320049808,1711115458669,-872.36,0.00031232,2]
[320049809,1711115458679,-567.31,0.00031232,2]
[320049810,1711115458689,-523.07,0.00031232,2]
[320049811,1711115458698,-500.0,0.00031232,2]
[320049812,1711115458708,-500.0,0.00031232,2]
[320049813,1711115458717,-662.01,0.00031232,2]
[320049814,1711115458728,-500.0,0.00031232,2]